[Event "Titled Tuesday Blitz April 25 Early 2023"]
[White "Belenkaya, Dina"]
[Black "Ramirez, Maria Eugenia"]
[WhiteFideId "24142654"]
[BlackFideId "3301680"]
[WhiteElo "2208"]
[BlackElo "1842"]
[Result "0-1"]
[Round "07"]
[TimeControl "180+2"]
[Date "2023.04.25"]
[WhiteClock "0:00:03"]
[BlackClock "0:00:50"]

1. d4 {[%clk 0:02:58]}  Nf6 {[%clk 0:02:59]} 2. Nf3 {[%clk 0:02:42]}  e6 {[%clk 0:02:59]} 3. g3 {[%clk 0:02:41]}  c5 {[%clk 0:03:00]} 4. c3 {[%clk 0:02:41]}  d5 {[%clk 0:02:59]} 5. Bg2 {[%clk 0:02:39]}  cxd4 {[%clk 0:02:59]} 6. cxd4 {[%clk 0:02:40]}  Nc6 {[%clk 0:03:00]} 7. Nc3 {[%clk 0:02:40]}  Bb4 {[%clk 0:02:58]} 8. O-O {[%clk 0:02:39]}  Bxc3 {[%clk 0:02:57]} 9. bxc3 {[%clk 0:02:39]}  O-O {[%clk 0:02:58]} 10. Nd2 {[%clk 0:02:34]}  Qa5 {[%clk 0:02:56]} 11. c4 {[%clk 0:02:24]}  dxc4 {[%clk 0:02:50]} 12. Nxc4 {[%clk 0:02:24]}  Qc3 {[%clk 0:02:48]} 13. Nb2 {[%clk 0:01:29]}  Qxd4 {[%clk 0:02:47]} 14. Rb1 {[%clk 0:00:52]}  Rd8 {[%clk 0:02:37]} 15. Nd3 {[%clk 0:00:52]}  Nd5 {[%clk 0:02:14]} 16. Bb2 {[%clk 0:00:42]}  Qg4 {[%clk 0:02:04]} 17. Bf3 {[%clk 0:00:37]}  Qg6 {[%clk 0:01:58]} 18. Qb3 {[%clk 0:00:32]}  f6 {[%clk 0:01:52]} 19. Rfd1 {[%clk 0:00:23]}  Qf7 {[%clk 0:01:51]} 20. Nc5 {[%clk 0:00:21]}  b6 {[%clk 0:01:46]} 21. Ne4 {[%clk 0:00:18]}  Bb7 {[%clk 0:01:43]} 22. Rbc1 {[%clk 0:00:15]}  Na5 {[%clk 0:01:36]} 23. Qa4 {[%clk 0:00:14]}  Bc6 {[%clk 0:01:33]} 24. Qa3 {[%clk 0:00:15]}  Rac8 {[%clk 0:01:30]} 25. Nd6 {[%clk 0:00:15]}  Qg6 {[%clk 0:01:12]} 26. Nxc8 {[%clk 0:00:14]}  Rxc8 {[%clk 0:01:12]} 27. Bxd5 {[%clk 0:00:14]}  exd5 {[%clk 0:01:12]} 28. Qd3 {[%clk 0:00:14]}  Qf7 {[%clk 0:01:10]} 29. Qa6 {[%clk 0:00:10]}  Rd8 {[%clk 0:01:05]} 30. Bc3 {[%clk 0:00:07]}  Nc4 {[%clk 0:01:05]} 31. Bd4 {[%clk 0:00:05]}  Qd7 {[%clk 0:01:00]} 32. e4 {[%clk 0:00:05]}  Bb5 {[%clk 0:00:59]} 33. Qxb5 {[%clk 0:00:02]}  Qxb5 {[%clk 0:00:59]} 34. Be3 {[%clk 0:00:03]}  Nxe3 {[%clk 0:00:58]} 35. fxe3 {[%clk 0:00:04]}  Rd7 {[%clk 0:00:52]} 36. exd5 {[%clk 0:00:03]}  Rxd5 {[%clk 0:00:51]} 37. Rc8+ {[%clk 0:00:03]}  Kf7 {[%clk 0:00:51]} 38. Rc7+ {[%clk 0:00:04]}  Kg6 {[%clk 0:00:51]} 39. Rdc1 {[%clk 0:00:04]}  Rc5 {[%clk 0:00:50]} 40. R7xc5 {[%clk 0:00:03]}  bxc5 {[%clk 0:00:50]} 41. Rc2 {[%clk 0:00:04]}  Qd3 {[%clk 0:00:50]} 42. Rf2 {[%clk 0:00:03]}  Qxe3 {[%clk 0:00:50]} 43. Kg2 {[%clk 0:00:03]}  c4 {[%clk 0:00:50]} 0-1


[Site "https://www.chess.com"]

[Event "Titled Tuesday Blitz April 25 Early 2023"]
[White "Coelho, Ramyres Santana"]
[Black "Topalov, Aleksandar"]
[WhiteFideId "2120690"]
[BlackFideId "925659"]
[WhiteElo "1888"]
[BlackElo "2151"]
[Result "0-1"]
[Round "07"]
[TimeControl "180+2"]
[Date "2023.04.25"]
[WhiteClock "0:00:21"]
[BlackClock "0:01:11"]

1. e4 {[%clk 0:03:00]}  e6 {[%clk 0:02:59]} 2. d4 {[%clk 0:02:59]}  d5 {[%clk 0:02:55]} 3. Nc3 {[%clk 0:02:58]}  Bb4 {[%clk 0:02:55]} 4. e5 {[%clk 0:02:57]}  Qd7 {[%clk 0:02:55]} 5. a3 {[%clk 0:02:52]}  Bxc3+ {[%clk 0:02:55]} 6. bxc3 {[%clk 0:02:53]}  b6 {[%clk 0:02:55]} 7. a4 {[%clk 0:02:50]}  Ba6 {[%clk 0:02:54]} 8. Qg4 {[%clk 0:02:47]}  f5 {[%clk 0:02:53]} 9. Qh5+ {[%clk 0:02:36]}  Qf7 {[%clk 0:02:48]} 10. Qxf7+ {[%clk 0:02:36]}  Kxf7 {[%clk 0:02:49]} 11. Ne2 {[%clk 0:02:32]}  Ne7 {[%clk 0:02:45]} 12. Ba3 {[%clk 0:02:24]}  Nbc6 {[%clk 0:02:44]} 13. Nf4 {[%clk 0:02:20]}  Bxf1 {[%clk 0:02:42]} 14. Rxf1 {[%clk 0:02:18]}  Na5 {[%clk 0:02:43]} 15. Bxe7 {[%clk 0:02:15]}  Kxe7 {[%clk 0:02:42]} 16. Nd3 {[%clk 0:02:13]}  Nc4 {[%clk 0:02:40]} 17. Ra2 {[%clk 0:02:11]}  g5 {[%clk 0:02:38]} 18. Nb2 {[%clk 0:02:10]}  Na5 {[%clk 0:02:37]} 19. Kd2 {[%clk 0:02:07]}  Rac8 {[%clk 0:02:37]} 20. Kd3 {[%clk 0:02:07]}  c5 {[%clk 0:02:36]} 21. f4 {[%clk 0:01:57]}  h6 {[%clk 0:02:33]} 22. h3 {[%clk 0:01:51]}  Rhg8 {[%clk 0:02:30]} 23. fxg5 {[%clk 0:01:31]}  Rxg5 {[%clk 0:02:29]} 24. Rf2 {[%clk 0:01:22]}  cxd4 {[%clk 0:02:25]} 25. cxd4 {[%clk 0:01:19]}  Rg3+ {[%clk 0:02:25]} 26. Kd2 {[%clk 0:01:15]}  Rcg8 {[%clk 0:02:14]} 27. Nd1 {[%clk 0:01:08]}  Rxg2 {[%clk 0:02:11]} 28. Kc3 {[%clk 0:00:52]}  R8g3+ {[%clk 0:01:59]} 29. Kb4 {[%clk 0:00:51]}  Kd7 {[%clk 0:01:52]} 30. Kb5 {[%clk 0:00:50]}  Kc7 {[%clk 0:01:35]} 31. Ka6 {[%clk 0:00:48]}  Nc6 {[%clk 0:01:29]} 32. Rxg2 {[%clk 0:00:37]}  Rxg2 {[%clk 0:01:27]} 33. Rb2 {[%clk 0:00:32]}  Nxd4 {[%clk 0:01:18]} 34. Kxa7 {[%clk 0:00:27]}  Nc6+ {[%clk 0:01:18]} 35. Ka6 {[%clk 0:00:25]}  Rg8 {[%clk 0:01:12]} 36. Rxb6 {[%clk 0:00:21]}  Ra8+ {[%clk 0:01:11]} 37. Kb5 {[%clk 0:00:21]}  Ra5# {[%clk 0:01:11]} 0-1


[Site "https://www.chess.com"]

[Event "Titled Tuesday Blitz April 25 Early 2023"]
[White "Floresvillar Gonzalez, Luis Migu"]
[Black "Mouhamad, Joachim"]
[WhiteFideId "5100542"]
[BlackFideId "656410"]
[WhiteElo "2040"]
[BlackElo "2125"]
[Result "0-1"]
[Round "07"]
[TimeControl "180+2"]
[Date "2023.04.25"]
[WhiteClock "0:00:01"]
[BlackClock "0:00:27"]

1. d4 {[%clk 0:03:00]}  d5 {[%clk 0:02:57]} 2. c3 {[%clk 0:03:00]}  Nf6 {[%clk 0:02:44]} 3. Bg5 {[%clk 0:03:00]}  Ne4 {[%clk 0:02:44]} 4. h4 {[%clk 0:02:59]}  c5 {[%clk 0:02:41]} 5. e3 {[%clk 0:02:58]}  Qb6 {[%clk 0:02:40]} 6. Qb3 {[%clk 0:02:55]}  c4 {[%clk 0:02:38]} 7. Qxb6 {[%clk 0:02:54]}  axb6 {[%clk 0:02:39]} 8. Nd2 {[%clk 0:02:53]}  Nxd2 {[%clk 0:02:22]} 9. Kxd2 {[%clk 0:02:52]}  Nc6 {[%clk 0:02:22]} 10. e4 {[%clk 0:02:49]}  e6 {[%clk 0:02:20]} 11. g3 {[%clk 0:02:38]}  b5 {[%clk 0:02:16]} 12. Bg2 {[%clk 0:02:31]}  dxe4 {[%clk 0:02:13]} 13. Bxe4 {[%clk 0:02:29]}  Be7 {[%clk 0:02:02]} 14. Bxe7 {[%clk 0:02:24]}  Nxe7 {[%clk 0:02:02]} 15. Ne2 {[%clk 0:02:13]}  Ra7 {[%clk 0:02:02]} 16. a3 {[%clk 0:02:11]}  Bd7 {[%clk 0:02:02]} 17. Nf4 {[%clk 0:02:01]}  Bc6 {[%clk 0:02:02]} 18. Rae1 {[%clk 0:01:51]}  O-O {[%clk 0:01:57]} 19. Re2 {[%clk 0:01:41]}  Rd8 {[%clk 0:01:57]} 20. Bxc6 {[%clk 0:01:34]}  bxc6 {[%clk 0:01:55]} 21. Rhe1 {[%clk 0:01:31]}  c5 {[%clk 0:01:49]} 22. Re4 {[%clk 0:01:23]}  Rad7 {[%clk 0:01:47]} 23. Ne2 {[%clk 0:01:18]}  Nc6 {[%clk 0:01:37]} 24. Ke3 {[%clk 0:01:13]}  Ne7 {[%clk 0:01:24]} 25. Kf3 {[%clk 0:00:58]}  Nf5 {[%clk 0:01:03]} 26. dxc5 {[%clk 0:00:52]}  Rc7 {[%clk 0:01:02]} 27. Nd4 {[%clk 0:00:49]}  Rxc5 {[%clk 0:00:59]} 28. Nxf5 {[%clk 0:00:25]}  Rxf5+ {[%clk 0:00:59]} 29. Kg2 {[%clk 0:00:22]}  Rd2 {[%clk 0:00:52]} 30. R1e2 {[%clk 0:00:21]}  Rfd5 {[%clk 0:00:51]} 31. Kf3 {[%clk 0:00:21]}  Rd1 {[%clk 0:00:44]} 32. R4e3 {[%clk 0:00:17]}  Kf8 {[%clk 0:00:44]} 33. g4 {[%clk 0:00:16]}  h5 {[%clk 0:00:40]} 34. g5 {[%clk 0:00:15]}  g6 {[%clk 0:00:38]} 35. Kg2 {[%clk 0:00:13]}  Ke7 {[%clk 0:00:37]} 36. f4 {[%clk 0:00:13]}  Kd6 {[%clk 0:00:34]} 37. Kf2 {[%clk 0:00:07]}  Rh1 {[%clk 0:00:32]} 38. Kg2 {[%clk 0:00:07]}  Rxh4 {[%clk 0:00:31]} 39. Rf2 {[%clk 0:00:03]}  Rd1 {[%clk 0:00:27]} 40. Ree2 {[%clk 0:00:01]}  Rhh1 {[%clk 0:00:27]} 0-1


[Site "https://www.chess.com"]

[Event "Titled Tuesday Blitz April 25 Early 2023"]
[White "Putri, Regita Desyari"]
[Black "Ansh M Shah"]
[WhiteFideId "7109083"]
[BlackFideId "25033379"]
[WhiteElo "1930"]
[BlackElo "2084"]
[Result "1-0"]
[Round "07"]
[TimeControl "180+2"]
[Date "2023.04.25"]
[WhiteClock "0:00:05"]
[BlackClock "0:00:03"]

1. d4 {[%clk 0:02:59]}  Nf6 {[%clk 0:02:56]} 2. c4 {[%clk 0:03:00]}  e6 {[%clk 0:02:53]} 3. Nf3 {[%clk 0:03:00]}  c5 {[%clk 0:02:53]} 4. d5 {[%clk 0:02:58]}  exd5 {[%clk 0:02:53]} 5. cxd5 {[%clk 0:02:59]}  d6 {[%clk 0:02:54]} 6. Nc3 {[%clk 0:02:59]}  g6 {[%clk 0:02:54]} 7. e4 {[%clk 0:02:59]}  Bg7 {[%clk 0:02:54]} 8. Be2 {[%clk 0:02:59]}  O-O {[%clk 0:02:54]} 9. O-O {[%clk 0:03:00]}  Re8 {[%clk 0:02:55]} 10. Qc2 {[%clk 0:02:58]}  a6 {[%clk 0:02:55]} 11. a4 {[%clk 0:02:57]}  Nbd7 {[%clk 0:02:55]} 12. Bf4 {[%clk 0:02:56]}  Ne5 {[%clk 0:02:55]} 13. Nxe5 {[%clk 0:02:56]}  dxe5 {[%clk 0:02:56]} 14. Be3 {[%clk 0:02:57]}  b6 {[%clk 0:02:51]} 15. a5 {[%clk 0:02:54]}  bxa5 {[%clk 0:02:35]} 16. Na4 {[%clk 0:02:49]}  Bd7 {[%clk 0:02:31]} 17. Nxc5 {[%clk 0:02:49]}  Bb5 {[%clk 0:02:32]} 18. Bxb5 {[%clk 0:02:09]}  axb5 {[%clk 0:02:32]} 19. Nb7 {[%clk 0:02:09]}  Qd7 {[%clk 0:02:17]} 20. Nxa5 {[%clk 0:02:07]}  Bf8 {[%clk 0:01:16]} 21. Nc6 {[%clk 0:02:03]}  Rac8 {[%clk 0:01:16]} 22. Qd3 {[%clk 0:01:58]}  Rxc6 {[%clk 0:01:13]} 23. Qxb5 {[%clk 0:01:50]}  Rc7 {[%clk 0:01:10]} 24. Qd3 {[%clk 0:01:48]}  Rb7 {[%clk 0:01:09]} 25. Ra6 {[%clk 0:01:42]}  Bg7 {[%clk 0:00:44]} 26. b3 {[%clk 0:01:25]}  Reb8 {[%clk 0:00:41]} 27. Rb1 {[%clk 0:01:25]}  Qb5 {[%clk 0:00:38]} 28. Qxb5 {[%clk 0:01:15]}  Rxb5 {[%clk 0:00:39]} 29. h3 {[%clk 0:01:09]}  Nxe4 {[%clk 0:00:38]} 30. d6 {[%clk 0:01:05]}  Bf8 {[%clk 0:00:29]} 31. Rd1 {[%clk 0:00:57]}  Rd8 {[%clk 0:00:16]} 32. d7 {[%clk 0:00:53]}  Nc5 {[%clk 0:00:14]} 33. Ra7 {[%clk 0:00:50]}  Rb7 {[%clk 0:00:12]} 34. Rxb7 {[%clk 0:00:49]}  Nxb7 {[%clk 0:00:12]} 35. Bb6 {[%clk 0:00:49]}  Be7 {[%clk 0:00:11]} 36. Bxd8 {[%clk 0:00:46]}  Bxd8 {[%clk 0:00:12]} 37. Rd5 {[%clk 0:00:35]}  f6 {[%clk 0:00:11]} 38. Rb5 {[%clk 0:00:28]}  Nd6 {[%clk 0:00:11]} 39. Rb8 {[%clk 0:00:28]}  Nf7 {[%clk 0:00:10]} 40. b4 {[%clk 0:00:23]}  Kf8 {[%clk 0:00:10]} 41. b5 {[%clk 0:00:22]}  Ke7 {[%clk 0:00:11]} 42. b6 {[%clk 0:00:16]}  Nd6 {[%clk 0:00:09]} 43. Kf1 {[%clk 0:00:11]}  Kxd7 {[%clk 0:00:08]} 44. Ke2 {[%clk 0:00:11]}  Nc4 {[%clk 0:00:05]} 45. Rb7+ {[%clk 0:00:11]}  Kc6 {[%clk 0:00:05]} 46. Rxh7 {[%clk 0:00:12]}  Nxb6 {[%clk 0:00:04]} 47. h4 {[%clk 0:00:10]}  f5 {[%clk 0:00:04]} 48. g3 {[%clk 0:00:09]}  Kd5 {[%clk 0:00:03]} 49. Rg7 {[%clk 0:00:09]}  g5 {[%clk 0:00:02]} 50. h5 {[%clk 0:00:10]}  f4 {[%clk 0:00:02]} 51. gxf4 {[%clk 0:00:09]}  gxf4 {[%clk 0:00:03]} 52. h6 {[%clk 0:00:09]}  Bf6 {[%clk 0:00:03]} 53. Rf7 {[%clk 0:00:06]}  Bh8 {[%clk 0:00:03]} 54. Rf8 {[%clk 0:00:05]}  e4 {[%clk 0:00:03]} 55. Rxh8 {[%clk 0:00:05]}  Nc4 {[%clk 0:00:03]} 56. Rd8+ {[%clk 0:00:05]}  Ke5 {[%clk 0:00:03]} 57. h7 {[%clk 0:00:05]} 1-0


[Site "https://www.chess.com"]

[Event "Titled Tuesday Blitz April 25 Early 2023"]
[White "Sailer, Mike"]
[Black "Gutkin, Ilya"]
[WhiteFideId "2012901"]
[BlackFideId "16203470"]
[WhiteElo "2109"]
[BlackElo "2265"]
[Result "0-1"]
[Round "07"]
[TimeControl "180+2"]
[Date "2023.04.25"]
[WhiteClock "0:00:10"]
[BlackClock "0:00:13"]

1. d4 {[%clk 0:02:56]}  d5 {[%clk 0:02:58]} 2. Bg5 {[%clk 0:02:56]}  c5 {[%clk 0:02:57]} 3. e3 {[%clk 0:02:52]}  cxd4 {[%clk 0:02:49]} 4. exd4 {[%clk 0:02:51]}  Qb6 {[%clk 0:02:49]} 5. Nc3 {[%clk 0:02:44]}  e6 {[%clk 0:02:45]} 6. Bb5+ {[%clk 0:02:32]}  Bd7 {[%clk 0:02:44]} 7. a4 {[%clk 0:02:32]}  Bb4 {[%clk 0:02:42]} 8. Bxd7+ {[%clk 0:02:15]}  Nxd7 {[%clk 0:02:40]} 9. Ne2 {[%clk 0:02:15]}  Bxc3+ {[%clk 0:02:37]} 10. Nxc3 {[%clk 0:02:07]}  h6 {[%clk 0:02:22]} 11. Bf4 {[%clk 0:02:00]}  a6 {[%clk 0:02:13]} 12. O-O {[%clk 0:01:59]}  Ngf6 {[%clk 0:02:11]} 13. a5 {[%clk 0:01:55]}  Qc6 {[%clk 0:02:00]} 14. Na4 {[%clk 0:01:44]}  O-O {[%clk 0:01:59]} 15. b4 {[%clk 0:01:38]}  Ne4 {[%clk 0:01:55]} 16. Nc5 {[%clk 0:01:28]}  Rfc8 {[%clk 0:01:18]} 17. Qd3 {[%clk 0:01:09]}  Nd6 {[%clk 0:01:10]} 18. Bxd6 {[%clk 0:01:01]}  Qxd6 {[%clk 0:01:10]} 19. f4 {[%clk 0:00:43]}  Rc7 {[%clk 0:01:06]} 20. f5 {[%clk 0:00:40]}  e5 {[%clk 0:01:06]} 21. Qg3 {[%clk 0:00:36]}  Re8 {[%clk 0:00:47]} 22. Nxd7 {[%clk 0:00:20]}  Rxd7 {[%clk 0:00:45]} 23. f6 {[%clk 0:00:17]}  g6 {[%clk 0:00:44]} 24. Rae1 {[%clk 0:00:10]}  e4 {[%clk 0:00:41]} 25. Qh3 {[%clk 0:00:10]}  Kh7 {[%clk 0:00:40]} 26. Rf4 {[%clk 0:00:10]}  Qxf4 {[%clk 0:00:18]} 27. Qxd7 {[%clk 0:00:10]}  Rf8 {[%clk 0:00:17]} 28. Qxb7 {[%clk 0:00:09]}  e3 {[%clk 0:00:13]} 29. Qxd5 {[%clk 0:00:10]}  Qf2+ {[%clk 0:00:13]} 0-1


[Site "https://www.chess.com"]

[Event "Titled Tuesday Blitz April 25 Early 2023"]
[White "Steenbekkers, Franck"]
[Black "Zavortink, Matt"]
[WhiteFideId "1004220"]
[BlackFideId "2034263"]
[WhiteElo "2120"]
[BlackElo "2464"]
[Result "0-1"]
[Round "07"]
[TimeControl "180+2"]
[Date "2023.04.25"]
[WhiteClock "0:00:01"]
[BlackClock "0:00:06"]

1. e4 {[%clk 0:03:00]}  e6 {[%clk 0:03:00]} 2. d4 {[%clk 0:02:59]}  d5 {[%clk 0:03:00]} 3. Nd2 {[%clk 0:03:00]}  Be7 {[%clk 0:02:59]} 4. Ngf3 {[%clk 0:02:59]}  Nf6 {[%clk 0:02:59]} 5. e5 {[%clk 0:02:57]}  Nfd7 {[%clk 0:03:00]} 6. Bd3 {[%clk 0:02:57]}  c5 {[%clk 0:03:00]} 7. c3 {[%clk 0:02:57]}  Nc6 {[%clk 0:03:00]} 8. O-O {[%clk 0:02:55]}  a5 {[%clk 0:02:58]} 9. a4 {[%clk 0:02:07]}  O-O {[%clk 0:02:55]} 10. Re1 {[%clk 0:01:59]}  f6 {[%clk 0:02:49]} 11. exf6 {[%clk 0:01:55]}  Nxf6 {[%clk 0:02:47]} 12. Nf1 {[%clk 0:01:43]}  cxd4 {[%clk 0:02:42]} 13. cxd4 {[%clk 0:01:41]}  Bd7 {[%clk 0:02:37]} 14. Ng3 {[%clk 0:01:25]}  Qb6 {[%clk 0:02:35]} 15. Be3 {[%clk 0:01:16]}  Rac8 {[%clk 0:02:23]} 16. Ne5 {[%clk 0:01:13]}  Bd6 {[%clk 0:02:03]} 17. f4 {[%clk 0:01:05]}  Nb4 {[%clk 0:01:55]} 18. Bb1 {[%clk 0:00:59]}  Rc7 {[%clk 0:01:37]} 19. Nh5 {[%clk 0:00:57]}  Be8 {[%clk 0:00:43]} 20. Nxf6+ {[%clk 0:00:42]}  gxf6 {[%clk 0:00:42]} 21. Nf3 {[%clk 0:00:38]}  Rg7 {[%clk 0:00:39]} 22. Kh1 {[%clk 0:00:37]}  Kh8 {[%clk 0:00:39]} 23. f5 {[%clk 0:00:31]}  Rfg8 {[%clk 0:00:37]} 24. Nh4 {[%clk 0:00:24]}  Qc7 {[%clk 0:00:24]} 25. Bh6 {[%clk 0:00:19]}  Re7 {[%clk 0:00:19]} 26. Rxe6 {[%clk 0:00:17]}  Rxe6 {[%clk 0:00:18]} 27. fxe6 {[%clk 0:00:17]}  Bxh2 {[%clk 0:00:18]} 28. Qf3 {[%clk 0:00:16]}  Qe7 {[%clk 0:00:08]} 29. Kxh2 {[%clk 0:00:14]}  Qxe6 {[%clk 0:00:08]} 30. Bf5 {[%clk 0:00:12]}  Qd6+ {[%clk 0:00:08]} 31. Bf4 {[%clk 0:00:11]}  Qc6 {[%clk 0:00:07]} 32. Re1 {[%clk 0:00:10]}  Bf7 {[%clk 0:00:07]} 33. Qh3 {[%clk 0:00:07]}  Qb6 {[%clk 0:00:05]} 34. Re7 {[%clk 0:00:05]}  Rg7 {[%clk 0:00:05]} 35. Rxf7 {[%clk 0:00:05]}  Rxf7 {[%clk 0:00:05]} 36. Ng6+ {[%clk 0:00:05]}  Kg8 {[%clk 0:00:05]} 37. Be6 {[%clk 0:00:05]}  hxg6 {[%clk 0:00:05]} 38. Bxf7+ {[%clk 0:00:03]}  Kxf7 {[%clk 0:00:06]} 39. Qh7+ {[%clk 0:00:03]}  Kf8 {[%clk 0:00:06]} 40. Bh6+ {[%clk 0:00:01]}  Ke8 {[%clk 0:00:06]} 41. Qxg6+ {[%clk 0:00:01]}  Kd7 {[%clk 0:00:06]} 42. Bg7 {[%clk 0:00:02]}  Qxd4 {[%clk 0:00:05]} 43. Bxf6 {[%clk 0:00:01]}  Qf4+ {[%clk 0:00:06]} 0-1


[Site "https://www.chess.com"]

[Event "Titled Tuesday Blitz April 25 Early 2023"]
[White "Zaichenko, Daria"]
[Black "Lach, Aleksandra"]
[WhiteFideId "4197453"]
[BlackFideId "1134299"]
[WhiteElo "2039"]
[BlackElo "2111"]
[Result "1-0"]
[Round "07"]
[TimeControl "180+2"]
[Date "2023.04.25"]
[WhiteClock "0:01:03"]
[BlackClock "0:00:24"]

1. e4 {[%clk 0:02:57]}  e5 {[%clk 0:02:53]} 2. Nf3 {[%clk 0:02:57]}  Nc6 {[%clk 0:02:53]} 3. Bc4 {[%clk 0:02:57]}  Bc5 {[%clk 0:02:52]} 4. d3 {[%clk 0:02:57]}  Nf6 {[%clk 0:02:51]} 5. c3 {[%clk 0:02:57]}  O-O {[%clk 0:02:48]} 6. O-O {[%clk 0:02:57]}  d6 {[%clk 0:02:42]} 7. Bb3 {[%clk 0:02:54]}  a5 {[%clk 0:02:40]} 8. Nbd2 {[%clk 0:02:53]}  b5 {[%clk 0:02:40]} 9. Re1 {[%clk 0:02:44]}  a4 {[%clk 0:02:27]} 10. Bc2 {[%clk 0:02:44]}  Ng4 {[%clk 0:02:26]} 11. Re2 {[%clk 0:02:42]}  f5 {[%clk 0:02:25]} 12. h3 {[%clk 0:02:42]}  Nh6 {[%clk 0:02:25]} 13. d4 {[%clk 0:02:20]}  Bb6 {[%clk 0:02:18]} 14. dxe5 {[%clk 0:02:11]}  dxe5 {[%clk 0:02:15]} 15. exf5 {[%clk 0:02:07]}  Bxf5 {[%clk 0:02:15]} 16. Bxf5 {[%clk 0:02:07]}  Nxf5 {[%clk 0:02:12]} 17. Qc2 {[%clk 0:02:07]}  Nh4 {[%clk 0:01:38]} 18. Nxh4 {[%clk 0:01:56]}  Qxh4 {[%clk 0:01:39]} 19. Nf3 {[%clk 0:01:56]}  Rxf3 {[%clk 0:01:04]} 20. gxf3 {[%clk 0:01:56]}  Qg3+ {[%clk 0:01:04]} 21. Kf1 {[%clk 0:01:55]}  Qxh3+ {[%clk 0:01:04]} 22. Kg1 {[%clk 0:01:52]}  Qg3+ {[%clk 0:01:03]} 23. Kf1 {[%clk 0:01:52]}  Qh3+ {[%clk 0:00:44]} 24. Kg1 {[%clk 0:01:51]}  Rd8 {[%clk 0:00:44]} 25. Be3 {[%clk 0:01:25]}  Rd6 {[%clk 0:00:38]} 26. Bxb6 {[%clk 0:01:23]}  cxb6 {[%clk 0:00:26]} 27. Re4 {[%clk 0:01:21]}  Qxf3 {[%clk 0:00:25]} 28. Re3 {[%clk 0:01:04]}  Rg6+ {[%clk 0:00:24]} 29. Qxg6 {[%clk 0:01:03]} 1-0


[Site "https://www.chess.com"]

[Event "Titled Tuesday Blitz April 25 Early 2023"]
[White "Tymrakiewicz, Rafal"]
[Black "Chirivi C, Jenny Astrid"]
[WhiteFideId "1108832"]
[BlackFideId "4403061"]
[WhiteElo "2151"]
[BlackElo "2001"]
[Result "0-1"]
[Round "07"]
[TimeControl "180+2"]
[Date "2023.04.25"]
[WhiteClock "0:00:01"]
[BlackClock "0:00:18"]

1. d4 {[%clk 0:02:51]}  Nf6 {[%clk 0:02:58]} 2. Bg5 {[%clk 0:02:49]}  e6 {[%clk 0:02:56]} 3. Nd2 {[%clk 0:02:49]}  h6 {[%clk 0:02:52]} 4. Bh4 {[%clk 0:02:46]}  c5 {[%clk 0:02:48]} 5. e3 {[%clk 0:02:46]}  Nc6 {[%clk 0:02:46]} 6. c3 {[%clk 0:02:45]}  Qb6 {[%clk 0:02:35]} 7. Nc4 {[%clk 0:02:44]}  Qc7 {[%clk 0:02:32]} 8. Bg3 {[%clk 0:02:44]}  d6 {[%clk 0:02:27]} 9. dxc5 {[%clk 0:02:44]}  Ne5 {[%clk 0:02:18]} 10. Nxd6+ {[%clk 0:02:38]}  Bxd6 {[%clk 0:02:12]} 11. Qxd6 {[%clk 0:02:34]}  Qxd6 {[%clk 0:02:10]} 12. cxd6 {[%clk 0:02:35]}  Nc6 {[%clk 0:02:01]} 13. Nf3 {[%clk 0:02:27]}  Ne4 {[%clk 0:01:57]} 14. Bd3 {[%clk 0:02:22]}  Nxg3 {[%clk 0:01:56]} 15. hxg3 {[%clk 0:02:23]}  Bd7 {[%clk 0:01:52]} 16. O-O-O {[%clk 0:02:23]}  O-O-O {[%clk 0:01:51]} 17. Rd2 {[%clk 0:02:11]}  e5 {[%clk 0:01:47]} 18. Rhd1 {[%clk 0:02:01]}  Be6 {[%clk 0:01:45]} 19. Be4 {[%clk 0:01:48]}  f6 {[%clk 0:01:42]} 20. Kb1 {[%clk 0:01:40]}  Na5 {[%clk 0:01:38]} 21. b3 {[%clk 0:01:33]}  b6 {[%clk 0:01:31]} 22. Nh4 {[%clk 0:01:29]}  Kb8 {[%clk 0:01:27]} 23. Bf5 {[%clk 0:01:20]}  Bf7 {[%clk 0:01:23]} 24. g4 {[%clk 0:01:16]}  Nb7 {[%clk 0:01:01]} 25. Bg6 {[%clk 0:01:03]}  Be6 {[%clk 0:00:59]} 26. Nf5 {[%clk 0:01:03]}  Rd7 {[%clk 0:00:54]} 27. f3 {[%clk 0:01:03]}  Rhd8 {[%clk 0:00:51]} 28. Ne7 {[%clk 0:00:54]}  Rxd6 {[%clk 0:00:38]} 29. Nc6+ {[%clk 0:00:52]}  Rxc6 {[%clk 0:00:37]} 30. Rxd8+ {[%clk 0:00:52]}  Nxd8 {[%clk 0:00:37]} 31. Rxd8+ {[%clk 0:00:53]}  Kc7 {[%clk 0:00:36]} 32. Rd3 {[%clk 0:00:46]}  Rd6 {[%clk 0:00:34]} 33. Rxd6 {[%clk 0:00:45]}  Kxd6 {[%clk 0:00:34]} 34. Kb2 {[%clk 0:00:33]}  Kc5 {[%clk 0:00:34]} 35. Bd3 {[%clk 0:00:23]}  a5 {[%clk 0:00:33]} 36. a3 {[%clk 0:00:22]}  Bd7 {[%clk 0:00:26]} 37. b4+ {[%clk 0:00:22]}  axb4 {[%clk 0:00:26]} 38. cxb4+ {[%clk 0:00:23]}  Kd5 {[%clk 0:00:25]} 39. Kc3 {[%clk 0:00:20]}  Be8 {[%clk 0:00:21]} 40. Kb3 {[%clk 0:00:17]}  Kd6 {[%clk 0:00:20]} 41. a4 {[%clk 0:00:17]}  Bf7+ {[%clk 0:00:20]} 42. Bc4 {[%clk 0:00:15]}  Be8 {[%clk 0:00:21]} 43. a5 {[%clk 0:00:15]}  bxa5 {[%clk 0:00:21]} 44. bxa5 {[%clk 0:00:15]}  Kc5 {[%clk 0:00:21]} 45. a6 {[%clk 0:00:13]}  Kb6 {[%clk 0:00:21]} 46. Kb4 {[%clk 0:00:13]}  Bc6 {[%clk 0:00:21]} 47. Bd3 {[%clk 0:00:12]}  Bd5 {[%clk 0:00:21]} 48. Be2 {[%clk 0:00:08]}  Bc6 {[%clk 0:00:20]} 49. Kc3 {[%clk 0:00:08]}  Kc5 {[%clk 0:00:19]} 50. Bd3 {[%clk 0:00:04]}  Ba8 {[%clk 0:00:18]} 51. Be2 {[%clk 0:00:02]}  Bc6 {[%clk 0:00:18]} 52. Bc4 {[%clk 0:00:01]}  Kb6 {[%clk 0:00:18]} 0-1


[Site "https://www.chess.com"]